bitfinex/quotes_ETHUSD_20250130
["timestamp","ask_amount","ask_price","bid_price","bid_amount"]
[1738251685403,3.05341,3275.1,3274.7,0.55]
[1738251686103,0.224,3275.9,3274.9,0.55]
[1738251686327,3.05311,3275.4,3274.8,2.60353]
[1738251687041,3.05322,3275.3,3274.6,3.88279]
[1738251687219,3.05324,3275.2,3274.6,3.88279]
[1738251687550,0.8204,3275.4,3274.8,3.05361]
[1738251688109,3.0528,3275.7,3275.0,3.05339]
[1738251688403,3.05241,3276.1,3275.6,0.55]
[1738251688810,3.05241,3276.1,3275.5,0.55]
[1738251689433,3.05241,3276.1,3275.6,0.03355888]
[1738251689910,3.05278,3275.7,3275.6,0.03355888]
[1738251690257,3.05278,3275.7,3275.2,3.05322]
[1738251690258,1.0204,3276.2,3275.2,3.05322]
[1738251690417,3.05265,3275.9,3275.6,0.03355888]
[1738251690619,3.05278,3275.7,3275.1,3.60333]
[1738251691229,3.0529,3275.6,3275.0,3.05341]
[1738251691434,3.05278,3275.7,3275.0,3.05341]
[1738251691708,3.05278,3275.7,3274.9,0.7862]
[1738251691934,3.86854,3275.4,3275.0,0.55]
[1738251692446,3.86854,3275.4,3274.6,3.0538]
[1738251692632,3.86854,3275.4,3274.1,0.7719]
[1738251692633,3.43857961,3275.2,3274.1,0.7719]
[1738251692839,0.7921,3274.7,3273.8,3.82644]
[1738251693006,3.05403,3274.4,3273.8,3.82644]
[1738251693349,3.0538,3274.6,3274.0,3.05431]
[1738251693651,3.05419,3274.2,3273.8,0.7719]
[1738251693856,3.7921,3274.7,3273.6,3.05465]
[1738251694066,3.05419,3274.2,3273.6,3.05465]
[1738251694415,3.05431,3274.1,3273.5,3.0548]
[1738251694854,3.0542,3274.2,3273.4,0.55]
[1738251695059,3.0542,3274.2,3273.6,0.3056]
[1738251695363,3.7921,3274.7,3273.3,3.05498]
[1738251695653,3.05438,3274.0,3273.4,3.05492]
[1738251695812,3.05466,3273.7,3273.1,1.42855684]
[1738251696007,3.05515,3273.2,3272.7,0.8239]
[1738251696312,3.05519,3273.2,3272.6,3.05566]
[1738251696619,3.05513,3273.2,3272.6,3.05566]
[1738251697252,3.0552,3273.1,3272.5,3.05572]
[1738251698524,3.05539,3272.9,3272.4,0.8239]
[1738251698809,3.0552,3273.1,3272.4,0.55]
[1738251699013,3.05547,3272.9,3272.4,0.55]
[1738251699212,3.0553,3273.0,3272.2,3.05601]
[1738251699441,3.05547,3272.9,3272.3,3.05594]
[1738251699609,3.05547,3272.9,3272.1,3.05612]
[1738251699811,3.05564,3272.7,3272.1,3.05612]
[1738251700012,3.05564,3272.7,3271.9,3.83552]
[1738251700256,3.05593,3272.4,3271.9,0.7792]
[1738251700414,3.05593,3272.4,3271.7,3.05651]
[1738251700763,3.0558,3272.5,3271.7,3.05651]
[1738251700764,3.05598,3272.3,3271.7,3.05651]
[1738251701157,3.05598,3272.3,3271.6,3.05657]
[1738251701458,3.05598,3272.3,3271.7,0.55]
[1738251702005,3.05604,3272.2,3271.5,3.0567]
[1738251702307,3.05605,3272.2,3271.5,3.0567]
[1738251702596,3.05622,3272.1,3271.6,0.55]
[1738251702807,0.225,3272.3,3271.2,3.05697]
[1738251703099,3.83938,3271.9,3271.3,3.05685]
[1738251703272,0.225,3272.0,3271.4,3.0567]
[1738251703467,0.225,3272.0,3271.5,3.05662]
[1738251703962,0.225,3272.0,3271.4,3.0567]
[1738251704387,0.225,3272.0,3271.5,0.03373534]
[1738251705085,0.225,3272.0,3271.4,3.05679]
[1738251705290,0.225,3272.0,3271.6,0.03368323]
[1738251705612,0.225,3272.0,3271.7,0.03363111]
[1738251705991,0.225,3272.0,3271.5,3.05668]
[1738251706190,0.225,3272.0,3271.6,0.03368323]
[1738251706393,0.225,3272.0,3271.5,3.05668]
[1738251706591,0.225,3272.0,3271.6,0.03368323]
[1738251706904,3.05578,3272.5,3271.3,0.03056553]
[1738251707088,0.975,3272.6,3271.9,0.55]
[1738251707279,3.05605,3272.2,3271.6,3.05657]
[1738251707476,3.05605,3272.2,3272.0,0.03442424]
[1738251707718,3.05605,3272.2,3271.7,0.55]
[1738251707919,3.05605,3272.2,3272.1,0.03436928]
[1738251708079,3.05593,3272.4,3271.7,3.60645]
[1738251708283,3.05604,3272.2,3272.1,0.03436928]
[1738251708530,3.05623,3272.0,3271.4,0.55]
[1738251708706,3.05604,3272.2,3271.4,3.60679]
[1738251708906,3.05633,3271.9,3271.5,0.03468195]
[1738251709174,0.225,3272.2,3271.5,0.03468195]
[1738251709175,3.05648,3271.8,3271.5,0.03468195]
[1738251709402,3.0566,3271.6,3271.1,0.793]
[1738251709716,3.05648,3271.8,3271.1,0.55]
[1738251709920,3.05626,3272.0,3271.3,3.05688]
[1738251710103,3.87194,3272.3,3271.5,3.86874]
[1738251710104,3.0,3272.1,3271.5,3.86874]
[1738251710427,1.0409,3272.3,3271.4,0.55]
[1738251710727,3.05638,3271.9,3271.2,3.05698]
[1738251710877,3.05638,3271.9,3271.1,3.87656]
[1738251710878,3.05638,3271.9,3271.3,3.05682]
[1738251711695,3.05644,3271.8,3271.2,3.60695]
[1738251712129,3.05616,3272.1,3271.2,0.55]
[1738251712330,1.0409,3272.3,3271.5,3.05664]
[1738251712331,3.87188,3272.3,3271.5,3.05664]
[1738251712531,3.87188,3272.3,3271.6,3.05654]
[1738251712708,6.28107,3272.2,3271.6,3.05654]
[1738251712904,6.05607,3272.2,3271.6,3.05654]
[1738251713106,3.05573,3272.6,3271.9,3.05626]
[1738251713336,0.7953,3272.9,3272.4,3.05584]
[1738251713539,3.85069,3272.9,3272.4,3.05584]
[1738251714035,3.85069,3272.9,3271.6,0.7662]
[1738251714036,3.05579,3272.5,3271.6,0.7662]
[1738251714219,3.05582,3272.5,3271.9,3.05629]
[1738251714393,3.05582,3272.5,3271.9,0.55]
[1738251714591,3.05586,3272.4,3271.9,0.55]
[1738251714846,3.05603,3272.3,3271.7,0.55]
[1738251715014,3.05582,3272.5,3271.7,0.55]
[1738251715336,3.05597,3272.3,3271.8,3.0564]
[1738251715533,3.05597,3272.3,3271.6,3.82277]
[1738251715534,3.05616,3272.1,3271.6,3.82273]
[1738251715699,3.05624,3272.0,3271.4,3.05675]
[1738251715898,3.05707,3271.1,3270.6,0.8009]
[1738251716196,3.05733,3270.9,3270.3,3.05773]
[1738251716508,3.05707,3271.1,3270.4,3.05764]
[1738251716702,0.225,3271.2,3270.3,0.691663]
[1738251716951,3.05722,3271.0,3270.5,3.05762]
[1738251717148,0.225,3271.2,3270.7,3.05744]
[1738251717447,0.225,3271.2,3270.7,3.05738]
[1738251717819,3.0,3271.3,3270.8,3.60732]
[1738251718225,3.05672,3271.5,3270.9,1.3347]
[1738251718716,6.05672,3271.5,3270.9,4.39189]
[1738251718947,3.0,3271.4,3270.9,4.39189]
[1738251719238,3.0,3271.4,3270.9,1.3347]
[1738251720052,3.0,3271.4,3270.9,4.39193]
[1738251720260,3.0,3271.4,3270.7,3.05744]
[1738251720261,3.05696,3271.3,3270.6,0.8283]
[1738251720555,3.05696,3271.3,3271.0,0.03496549]
[1738251720857,6.05686,3271.4,3270.8,3.60733]
[1738251721030,6.05686,3271.4,3271.1,0.03491335]
[1738251721355,0.225,3271.8,3270.7,3.60743]
[1738251721555,3.05664,3271.6,3270.9,3.05719]
[1738251721727,3.05664,3271.6,3271.0,0.58496549]
[1738251722159,3.05671,3271.5,3271.0,0.58496549]
[1738251722357,3.05671,3271.5,3271.0,0.03496549]
[1738251722358,0.7592,3271.4,3271.0,0.03496549]
[1738251722543,6.05707,3271.1,3271.0,0.03496549]
[1738251722748,3.0,3271.1,3269.9,3.05818]
[1738251723058,3.05799,3270.2,3270.0,0.03548701]
[1738251723370,3.05764,3270.5,3270.0,0.03548701]
[1738251723520,3.05758,3270.6,3270.0,0.03548701]
[1738251723717,3.05758,3270.6,3270.1,0.55]
[1738251724021,3.05735,3270.8,3270.2,3.09328268]
[1738251724331,3.28219,3271.0,3270.4,3.05772]
[1738251724716,3.28219,3271.0,3270.5,0.03522621]
[1738251726566,3.0,3271.1,3270.5,0.03522621]
[1738251726719,6.28208,3271.1,3270.5,3.09276621]
[1738251726923,3.28208,3271.1,3270.5,3.09276621]
[1738251727127,3.05714,3271.1,3270.6,0.55]
[1738251727325,3.05718,3271.0,3270.6,0.55]
[1738251727535,3.05735,3270.8,3270.7,0.03585504]
[1738251727747,3.05718,3271.0,3270.7,0.03585504]
[1738251727982,3.05727,3270.9,3270.4,0.55]
[1738251728162,3.05727,3270.9,3270.8,0.03580289]
[1738251728363,3.05718,3271.0,3270.4,0.55]
[1738251728578,3.05726,3270.9,3270.8,0.03580289]
[1738251728863,3.0576,3270.6,3270.0,0.7901]
[1738251729080,3.05764,3270.5,3270.0,0.7901]
[1738251729235,3.0576,3270.6,3270.0,0.7901]
[1738251729442,3.05779,3270.4,3269.8,4.0971055]
[1738251729650,3.05819,3269.9,3269.8,1.0388255]
[1738251729855,6.83119,3269.9,3269.8,1.0388255]
[1738251730037,10.26976961,3269.9,3269.8,1.0388255]
[1738251730267,3.05882,3269.3,3268.7,0.7689]
[1738251730581,3.05882,3269.3,3268.7,1.21386514]
[1738251730786,3.05882,3269.3,3268.8,0.55]
[1738251730980,3.0,3269.6,3269.1,3.05885]
[1738251731139,3.0587,3269.4,3268.8,3.28738761]
[1738251731339,3.05842,3269.7,3268.9,3.05905]
[1738251731542,3.05842,3269.7,3269.1,3.05894]
[1738251732080,3.05865,3269.5,3269.1,0.55]
[1738251732269,3.05873,3269.4,3268.8,3.28739761]
[1738251732466,3.05853,3269.6,3268.9,3.0591]
[1738251732784,3.05859,3269.5,3268.9,3.05912]
[1738251732997,3.05859,3269.5,3268.7,3.82818]
[1738251733156,3.05874,3269.4,3268.8,0.55]
[1738251733479,3.05874,3269.4,3268.9,3.05912]
[1738251734374,3.05841,3269.7,3269.0,0.03321917]
[1738251734571,3.0586,3269.5,3269.0,0.03321917]
[1738251734775,0.773,3269.9,3269.4,3.05863]
[1738251734995,3.05806,3270.1,3269.6,3.05846]
[1738251735317,3.28286,3270.3,3269.6,3.05846]
[1738251735318,0.7634,3270.7,3269.9,0.55]
[1738251735517,3.05728,3270.9,3269.9,0.55]
[1738251735518,3.05728,3270.9,3270.3,3.05773]
[1738251736010,3.05728,3270.9,3270.4,0.03248867]
[1738251736181,3.82057,3271.0,3270.4,3.05763]
[1738251736589,3.05733,3270.9,3270.5,0.03243652]
[1738251736786,3.05736,3270.8,3270.5,0.03243652]
[1738251736985,3.05746,3270.7,3270.2,3.05789]
[1738251737216,3.05736,3270.8,3270.2,3.05789]
[1738251737417,3.82057,3271.0,3269.8,3.05828]
[1738251737418,3.0578,3270.4,3269.8,3.05828]
[1738251737718,3.05793,3270.2,3269.6,3.87195]
[1738251738014,3.0581,3270.0,3269.4,3.05864]
[1738251738199,3.05793,3270.2,3269.5,3.05855]
[1738251738511,3.05793,3270.2,3269.6,3.05845]
[1738251738749,3.05793,3270.2,3269.6,0.03306933]
[1738251739075,3.05814,3270.0,3269.6,0.0226666]
[1738251739391,3.05837,3269.8,3269.1,3.05888]
[1738251739700,3.05837,3269.8,3269.2,0.03308896]
[1738251740222,0.7932,3269.7,3269.2,0.03308896]
[1738251740378,3.05863,3269.5,3268.9,3.05911]
[1738251740576,3.05922,3268.8,3268.4,0.7533]
[1738251740794,3.05944,3268.6,3268.0,3.81324]
[1738251740976,3.05937,3268.7,3268.1,3.05987]
[1738251741313,3.05942,3268.6,3268.0,3.81324]
[1738251741621,3.05937,3268.7,3268.1,3.05987]
[1738251742540,4.11506,3269.1,3268.5,3.05947]
[1738251743039,1.0451,3269.4,3268.6,0.03059322]
[1738251743194,1.0451,3269.4,3268.4,3.05951]
[1738251743397,3.05932,3268.7,3268.0,3.81325]
[1738251743716,3.05904,3269.0,3268.2,0.55]
[1738251743918,3.05904,3269.0,3268.4,3.05951]
[1738251744096,4.0451,3269.4,3268.2,3.05978]
[1738251744097,3.05932,3268.7,3268.2,3.05978]
[1738251744302,3.05947,3268.6,3268.0,3.81324]
[1738251745135,3.05928,3268.8,3268.0,3.81324]
[1738251745136,3.05928,3268.8,3268.2,3.05975]
[1738251745336,3.0,3268.9,3268.3,0.55]
[1738251745497,0.225,3269.0,3268.5,0.55]
[1738251745898,6.05895,3269.1,3268.5,0.55]
[1738251746603,3.0,3269.1,3268.5,0.55]
[1738251746809,6.05898,3269.1,3268.6,0.03419635]
[1738251747022,6.05898,3269.1,3268.6,3.09358635]
[1738251747533,6.05898,3269.1,3268.6,0.03419635]
[1738251747938,3.05904,3269.0,3268.6,0.03419635]
[1738251748135,3.0592,3268.9,3268.6,0.03419635]
[1738251748347,3.05919,3268.9,3268.2,3.05972]
[1738251748633,3.05932,3268.7,3268.3,0.03432431]
[1738251748837,3.0,3269.0,3268.5,0.55]
[1738251749035,3.0,3269.0,3268.6,3.0594]
[1738251749247,3.8201,3269.4,3268.7,0.55]
[1738251749541,3.05894,3269.2,3268.8,0.03411488]
[1738251749694,3.05913,3268.9,3268.3,0.7528]
[1738251750137,3.05929,3268.8,3268.3,0.7528]
[1738251750441,3.05942,3268.6,3268.3,0.7528]
[1738251750594,3.05924,3268.8,3268.1,0.55]
[1738251750795,3.05924,3268.8,3268.3,0.55]
[1738251751203,3.05939,3268.7,3268.3,0.55]
[1738251751635,3.05942,3268.6,3268.0,3.83324]
[1738251751939,3.05942,3268.6,3268.0,3.05994]
[1738251752096,0.7844,3268.8,3268.3,3.05968]
[1738251752298,6.05916,3268.9,3268.4,0.55]
[1738251752809,3.05932,3268.7,3268.2,0.55]
[1738251753192,3.05949,3268.6,3268.0,0.55]
[1738251753396,3.05949,3268.6,3268.0,3.60993]
[1738251754429,3.05949,3268.6,3268.0,0.55]
[1738251754629,3.05914,3268.9,3268.4,0.55]
[1738251755141,3.05932,3268.7,3268.4,0.55]
[1738251755441,3.05914,3268.9,3268.4,0.55]
[1738251756398,3.05879,3269.3,3268.6,0.55]
[1738251756709,3.05916,3268.9,3268.4,0.55]
[1738251757609,3.05903,3269.1,3268.4,3.60953]
[1738251757811,3.05903,3269.1,3268.6,0.55]
[1738251758127,3.05848,3269.6,3268.9,0.55]
[1738251758440,3.28312,3270.0,3269.3,3.05875]
[1738251758643,6.05821,3269.9,3269.3,3.05875]
[1738251758941,3.0,3269.7,3269.2,3.05884]
[1738251759137,3.05839,3269.7,3269.4,0.03372713]
[1738251759450,3.05839,3269.7,3269.1,0.755]
[1738251759451,3.0,3269.9,3269.3,3.05873]
[1738251759604,3.0,3269.9,3269.5,0.03367494]
[1738251759798,3.0,3269.9,3269.4,0.03372713]
[1738251760029,3.0,3269.9,3269.5,0.03367494]
[1738251760301,3.05802,3270.1,3269.5,3.05854]
[1738251760640,3.05802,3270.1,3269.6,0.03362276]
[1738251760943,3.05802,3270.1,3268.6,0.36439621]
[1738251760944,0.8048,3269.7,3268.8,0.7785]
[1738251761147,3.0587,3269.4,3268.8,0.7785]
[1738251761444,3.0587,3269.4,3268.9,0.0339193]
[1738251761744,3.05887,3269.2,3268.9,0.0339193]
[1738251761917,3.0587,3269.4,3268.6,0.55]
[1738251762100,3.0587,3269.4,3269.0,0.03356596]
[1738251762507,3.0587,3269.4,3260.3,10.62106137]
[1738251762508,0.0075,3268.7,3268.1,0.59974283]
[1738251762706,0.0075,3268.7,3267.9,0.51762525]
[1738251762707,0.0075,3268.0,3266.8,0.7816]
[1738251763015,3.06099,3267.0,3266.7,0.1655313]
[1738251763216,3.43857961,3267.7,3266.7,0.1655313]
[1738251763445,3.84034,3268.2,3267.5,3.06041]
[1738251763646,3.82754,3268.7,3267.7,3.06019]
[1738251763804,3.82754,3268.7,3267.9,3.61005]
[1738251763805,0.225,3268.6,3267.9,3.61005]
[1738251764146,3.0,3268.5,3268.1,0.55]
[1738251764343,3.05922,3268.8,3268.1,0.55]
[1738251764344,3.28422,3268.8,3268.1,0.55]
[1738251764545,0.225,3268.9,3268.3,0.55]
[1738251764718,3.225,3269.0,3268.3,3.60969]
[1738251765057,3.05914,3268.9,3268.4,0.03041645]
[1738251765628,3.225,3269.0,3268.5,0.55]
[1738251765941,6.28405,3269.0,3268.6,0.03030455]
[1738251766304,6.05905,3269.0,3268.6,0.03030455]
[1738251766505,6.28405,3269.0,3268.4,0.55]
[1738251766706,6.28405,3269.0,3268.7,0.03024861]
[1738251767026,3.05915,3268.9,3268.8,0.03019268]
[1738251767233,3.225,3269.0,3268.4,0.55]
[1738251767431,6.28406,3269.0,3268.5,0.0303605]
[1738251767810,3.05923,3268.8,3268.5,0.0303605]
[1738251768009,3.05923,3268.8,3268.3,0.55]
[1738251768315,3.05923,3268.8,3268.4,0.03275617]
[1738251769942,3.05923,3268.8,3268.1,0.55]
[1738251770140,3.05946,3268.6,3268.5,0.0303605]
[1738251770303,3.05946,3268.6,3268.1,0.55]
[1738251770510,3.05946,3268.6,3268.5,0.0303605]
[1738251770731,3.05923,3268.8,3268.2,0.55]
[1738251770947,6.28404,3269.0,3268.5,0.0303605]
[1738251771118,0.8332,3270.3,3268.7,0.55]
[1738251771319,3.89109,3270.3,3269.7,3.05831]
[1738251771519,3.05849,3269.6,3269.0,0.8281]
[1738251771816,3.0583,3269.8,3269.0,3.88713]
[1738251772022,3.0583,3269.8,3269.1,3.60892]
[1738251772207,3.05839,3269.7,3269.1,3.60892]
[1738251773452,3.2832,3269.9,3269.1,3.60892]
[1738251773622,3.0584,3269.7,3269.1,3.60892]
[1738251773818,3.0584,3269.7,3269.1,0.55]
[1738251774138,3.05867,3269.4,3269.0,0.8281]
[1738251774452,0.7975,3269.5,3268.8,3.05915]
[1738251774656,3.05866,3269.4,3268.8,3.05915]
[1738251775143,3.05866,3269.4,3268.9,0.55]
[1738251775343,3.0,3269.5,3268.9,0.55]
[1738251776063,3.05876,3269.3,3268.7,0.55]
[1738251776304,3.05904,3269.0,3268.7,0.55]
[1738251776423,3.05904,3269.0,3268.4,3.05956]
[1738251777659,3.05915,3268.9,3268.4,0.55]
[1738251778342,3.05923,3268.8,3268.4,0.55]
[1738251778570,3.05912,3269.0,3268.4,0.55]
[1738251779140,3.0,3269.2,3268.4,0.55]
[1738251779370,0.224,3269.1,3268.6,3.05937]
[1738251779526,3.05897,3269.1,3268.4,3.60955]
[1738251779869,4.08554,3270.4,3269.5,3.05856]
[1738251780084,4.08554,3270.4,3269.3,3.60868]
[1738251780085,3.05823,3269.9,3269.6,0.03479599]
[1738251780581,3.05823,3269.9,3269.3,3.60868]
[1738251780794,3.05823,3269.9,3269.7,0.03450518]
[1738251780795,9.49686961,3269.8,3269.7,0.03450518]
[1738251781083,3.05876,3269.3,3268.7,3.89169]
[1738251781304,3.05876,3269.3,3268.8,0.55]
[1738251781583,3.05922,3268.8,3268.2,0.8324]
[1738251781883,3.05963,3268.4,3267.9,0.7546]
[1738251782238,3.05963,3268.4,3268.0,0.55]
[1738251782453,3.05963,3268.4,3267.9,0.7546]
[1738251782649,3.05975,3268.3,3267.9,0.7546]
[1738251782885,3.06018,3267.8,3267.2,3.86242]
[1738251783036,3.05997,3268.0,3267.3,3.06062]
[1738251783242,3.05963,3268.4,3267.8,3.06011]
[1738251783445,0.224,3268.4,3268.0,0.8017]
[1738251783676,3.224,3268.4,3268.0,0.8017]
[1738251783900,3.224,3268.6,3268.1,0.55]
[1738251784106,0.224,3268.8,3268.4,3.05959]
[1738251784257,6.0592,3268.9,3268.2,3.05972]
[1738251784458,6.0592,3268.9,3268.3,3.60968]
[1738251784661,3.05937,3268.7,3268.3,0.55]
[1738251784902,3.05937,3268.7,3268.0,0.8017]
[1738251785113,3.05971,3268.3,3268.0,0.8017]
[1738251785308,3.05978,3268.2,3268.1,0.55]
[1738251785476,3.05971,3268.3,3268.1,0.55]
[1738251785674,3.05978,3268.2,3268.1,0.55]
[1738251786474,3.06005,3268.0,3267.7,0.7821]
[1738251786671,3.06016,3267.8,3267.7,0.7821]
[1738251786870,3.06044,3267.6,3266.9,0.7908]
[1738251787070,3.06044,3267.6,3267.0,3.06084]
[1738251787373,0.224,3268.7,3267.5,0.55]
[1738251787575,3.05979,3268.2,3267.7,0.55]
[1738251788122,6.05964,3268.4,3267.7,0.55]
[1738251788281,3.05898,3269.1,3268.4,3.05954]
[1738251788464,3.05904,3269.0,3268.7,0.55]
[1738251788663,3.05924,3268.8,3268.7,0.55]
[1738251788881,3.05904,3269.0,3268.7,0.55]
[1738251789506,3.05887,3269.2,3268.7,0.55]
[1738251789709,3.05905,3269.0,3268.7,0.55]
[1738251789908,3.05916,3268.9,3268.7,0.55]
[1738251790210,3.05886,3269.2,3268.7,0.55]
[1738251790408,3.05896,3269.1,3268.7,0.55]
[1738251790984,3.05886,3269.2,3268.7,0.986934]
[1738251791185,3.05886,3269.2,3268.7,0.55]
[1738251791612,3.059,3269.1,3268.7,0.55]
[1738251792327,3.05909,3269.0,3268.7,0.55]
[1738251792647,3.05981,3268.2,3267.7,0.7662]
[1738251792855,3.05988,3268.1,3267.7,0.7662]
[1738251793241,3.05964,3268.4,3267.8,0.55]
[1738251793441,0.0075,3268.9,3267.7,0.7662]
[1738251793616,3.05984,3268.2,3267.7,0.7662]
[1738251793816,3.05989,3268.1,3267.8,0.03489811]
[1738251794069,3.05989,3268.1,3267.7,0.7662]
[1738251794210,3.06005,3268.0,3267.7,0.7662]
[1738251794556,3.06005,3268.0,3267.8,0.58807067]
[1738251794737,3.05984,3268.2,3267.8,0.58807067]
[1738251794940,0.0075,3268.3,3267.8,0.03807067]
[1738251795172,3.06006,3267.9,3267.8,0.03807067]
[1738251795464,0.783,3268.5,3267.3,0.7603]
[1738251795465,3.0599,3268.1,3267.4,3.64111312]
[1738251795667,3.05954,3268.5,3267.7,0.7743]
[1738251795976,3.05954,3268.5,3267.8,0.58221364]
[1738251796125,3.05915,3268.9,3268.2,3.60972]
[1738251796529,3.05932,3268.7,3268.4,0.55]
[1738251796772,3.05915,3268.9,3268.4,0.55]
[1738251797073,3.05907,3269.0,3268.7,0.55]
[1738251797279,3.05905,3269.0,3268.8,0.03424533]
[1738251797424,3.05905,3269.0,3268.7,0.55]
[1738251797760,3.05905,3269.0,3268.8,0.03424533]
[1738251798142,3.05905,3269.0,3268.6,0.55]
[1738251798343,3.05905,3269.0,3268.9,0.03418007]
[1738251798546,3.05905,3269.0,3268.6,0.55]
[1738251798763,3.05905,3269.0,3268.9,0.03728735]
[1738251799379,3.05925,3268.8,3268.6,0.55]
[1738251799669,3.05895,3269.1,3268.6,0.55]
[1738251799823,3.224,3269.5,3268.7,0.03742973]
[1738251800025,3.05905,3269.0,3268.7,0.03742973]
[1738251802935,3.05913,3268.9,3268.7,0.03742973]
[1738251803431,3.05922,3268.8,3268.7,0.03742973]
[1738251804034,3.05905,3269.0,3268.7,0.03742973]
[1738251804234,3.05886,3269.2,3268.7,0.03742973]
[1738251805134,3.05869,3269.4,3268.7,0.51781425]
[1738251805335,3.0585,3269.6,3268.9,0.8182]
[1738251805544,3.05839,3269.7,3269.1,3.05888]
[1738251805983,3.05839,3269.7,3269.3,0.55]
[1738251806275,3.05782,3270.3,3269.5,3.60851]
[1738251806484,3.05801,3270.1,3269.6,0.03058111]
[1738251806647,3.05829,3269.8,3269.6,0.04484051]
[1738251806851,3.05838,3269.7,3269.0,0.8182]
[1738251807051,3.05857,3269.5,3269.1,0.59074788]
[1738251807256,3.05838,3269.7,3269.1,0.59074788]
[1738251807565,3.05819,3270.0,3269.1,0.59074788]
[1738251807734,3.05829,3269.8,3269.2,0.55]
[1738251808201,3.05829,3269.8,3269.3,0.0405913]
[1738251808367,3.05819,3270.0,3269.4,0.55]
[1738251808737,3.05838,3269.8,3269.6,0.55]
[1738251808996,3.05814,3270.0,3269.6,0.55]
[1738251809167,3.05814,3270.0,3269.7,0.04027819]
[1738251809371,3.05829,3269.8,3269.7,0.04027819]
[1738251810301,3.05814,3270.0,3269.7,0.04027819]
[1738251810482,3.05829,3269.8,3269.7,0.04027819]
[1738251810675,3.05814,3270.0,3269.2,3.05878]
[1738251810875,3.05826,3269.9,3269.3,3.95967944]
[1738251811577,0.224,3270.3,3269.3,0.90097944]
[1738251811818,3.05834,3269.8,3269.3,0.59510144]
[1738251812730,3.05834,3269.8,3269.3,3.65385144]
[1738251812878,3.05819,3270.0,3269.3,3.65385144]
[1738251813073,3.05824,3269.9,3269.3,3.65385144]
[1738251813587,3.05831,3269.8,3269.3,3.65385144]
[1738251813909,3.05795,3270.2,3269.5,3.60849]
[1738251814082,3.05795,3270.2,3269.7,0.55]
[1738251814277,3.05794,3270.2,3269.9,0.55]
[1738251814478,3.05794,3270.2,3270.0,0.04449268]
[1738251815206,3.05801,3270.1,3270.0,0.04449268]
[1738251815611,3.0581,3270.0,3269.5,0.55]
[1738251815977,3.0,3270.2,3269.7,0.55]
[1738251816177,3.05809,3270.1,3269.7,0.55]
[1738251816427,3.05809,3270.1,3269.5,0.55]
[1738251816607,3.05816,3270.0,3269.5,0.55]
[1738251817319,3.05844,3269.7,3269.5,0.55]
[1738251817618,3.05837,3269.8,3269.2,0.55]
[1738251817815,3.05823,3269.9,3269.2,0.55]
[1738251818119,3.0584,3269.7,3269.2,0.55]
[1738251818276,3.0583,3269.8,3269.2,3.86996228]
[1738251818589,6.11668,3269.8,3269.2,0.81117228]
[1738251818788,3.05852,3269.6,3269.0,0.8223]
[1738251818989,3.05847,3269.6,3268.6,0.8073]
[1738251819189,3.0589,3269.2,3269.1,0.04451251]
[1738251819480,6.11783,3269.2,3269.1,0.04014278]
[1738251819790,3.05902,3269.1,3268.6,0.8073]
[1738251820188,3.05902,3269.1,3268.8,0.55]
[1738251820378,3.05906,3269.0,3268.8,0.55]
[1738251820579,3.0589,3269.2,3269.0,0.55]
[1738251820873,3.05848,3269.6,3268.7,0.58058828]
[1738251821194,3.05832,3269.8,3269.3,0.55]
[1738251821591,3.05832,3269.8,3269.3,0.59008919]
[1738251822323,0.8211,3270.1,3269.3,0.59008919]
[1738251822324,3.05866,3269.4,3269.3,0.59008919]
[1738251822508,3.8211,3270.1,3269.3,0.59008919]
[1738251822719,3.0581,3270.0,3269.5,0.55]
[1738251822893,3.0581,3270.0,3269.4,0.55]
[1738251823341,6.05804,3270.1,3269.6,1.3289]
[1738251823543,3.05817,3270.0,3269.6,1.3289]
[1738251823830,3.05835,3269.8,3269.6,1.3289]
[1738251824003,3.05817,3270.0,3269.6,1.3289]
[1738251825025,3.224,3270.3,3269.3,0.8131]
[1738251825239,3.05835,3269.8,3269.3,0.8131]
[1738251825440,3.05813,3270.0,3269.4,0.55]
[1738251825791,3.05819,3269.9,3269.4,0.55]
[1738251826033,3.0583,3269.8,3269.4,0.55]
[1738251826231,3.0583,3269.8,3269.4,0.992177]
[1738251826444,3.05813,3270.0,3269.4,4.050777]
[1738251826621,3.05821,3269.9,3269.4,4.050777]
[1738251826796,3.05821,3269.9,3269.5,0.05004449]
[1738251827131,3.05821,3269.9,3269.4,0.992177]
[1738251827329,3.0584,3269.7,3269.5,0.05004449]
[1738251827719,3.0584,3269.7,3269.4,0.55]
[1738251827925,3.0584,3269.7,3269.5,0.05004449]
[1738251828434,3.05847,3269.6,3269.5,0.55]
[1738251828731,3.05847,3269.6,3269.5,0.60004449]
[1738251828996,3.05847,3269.6,3269.5,0.05004449]
[1738251829130,9.71467024,3269.6,3269.5,0.05004449]
[1738251829331,3.05924,3268.8,3268.4,0.7594]
[1738251829529,3.05924,3268.8,3268.5,0.55]
[1738251829728,3.05924,3268.8,3268.5,0.58717414]
[1738251830048,3.05909,3269.0,3268.5,0.58717414]
[1738251830204,3.05913,3268.9,3268.5,0.58717414]
[1738251831506,3.05931,3268.8,3268.5,0.58717414]
[1738251831818,3.05932,3268.7,3268.5,0.58717414]